bitfinex-derivatives/quotes_SOLF0:USTF0_20250907
["timestamp","ask_amount","ask_price","bid_price","bid_amount"]
[1757242099853,13.17254969,203.34,203.28,7.98]
[1757242100050,13.17254969,203.34,203.3,7.98]
[1757242100255,13.17254969,203.34,203.28,7.98]
[1757242100456,13.17254969,203.34,203.29,4.49990673]
[1757242100658,13.17254969,203.34,203.28,7.98]
[1757242100857,13.17254969,203.34,203.29,4.49990673]
[1757242101057,13.17254969,203.34,203.28,7.98]
[1757242102255,7.65,203.34,203.29,4.49718454]
[1757242102459,7.65,203.34,203.28,7.98]
[1757242102759,7.65,203.34,203.29,4.49718454]
[1757242102958,7.65,203.34,203.28,7.98]
[1757242103158,7.65,203.34,203.29,4.4970073]
[1757242103358,7.65,203.34,203.28,7.98]
[1757242107966,7.65,203.35,203.3,7.98]
[1757242108364,7.65,203.35,203.28,7.98]
[1757242108565,7.65,203.35,203.29,4.49116195]
[1757242108767,7.65,203.35,203.28,7.98]
[1757242108965,7.65,203.35,203.29,4.49116195]
[1757242109166,7.65,203.35,203.28,7.98]
[1757242109367,7.65,203.35,203.29,4.49061759]
[1757242109666,7.65,203.35,203.28,7.98]
[1757242109864,7.65,203.35,203.29,4.49061759]
[1757242110067,7.65,203.35,203.28,7.98]
[1757242110366,7.65,203.35,203.29,4.49064322]
[1757242110560,7.65,203.35,203.28,7.98]
[1757242110763,7.65,203.35,203.29,4.49032695]
[1757242110964,7.65,203.35,203.28,7.98]
[1757242111164,7.65,203.35,203.29,4.49032695]
[1757242111467,7.65,203.35,203.28,7.98]
[1757242117667,13.17254969,203.35,203.28,7.98]
[1757242119074,13.17254969,203.35,203.29,4.48898358]
[1757242119275,13.17254969,203.35,203.28,7.98]
[1757242119474,13.17254969,203.35,203.29,4.48905191]
[1757242119775,13.17254969,203.35,203.28,7.98]
[1757242120069,7.65,203.33,203.28,7.98]
[1757242120374,7.65,203.33,203.26,7.98]
[1757242120575,7.65,203.33,203.27,4.49036981]
[1757242120776,7.65,203.33,203.28,4.49036981]
[1757242121074,7.65,203.33,203.26,7.98]
[1757242121378,5.52254969,203.34,203.27,4.49086389]
[1757242121575,7.65,203.33,203.28,12.47086389]
[1757242121778,7.65,203.33,203.26,7.98]
[1757242121974,7.65,203.33,203.28,7.98]
[1757242122170,7.65,203.33,203.27,7.98]
[1757242122471,5.52254969,203.34,203.28,4.49188128]
[1757242122675,7.65,203.33,203.27,7.98]
[1757242122876,5.52254969,203.34,203.28,4.49188128]
[1757242123177,7.65,203.33,203.27,7.98]
[1757242123371,5.52254969,203.34,203.28,4.49269054]
[1757242123576,7.65,203.33,203.27,7.98]
[1757242123875,5.52254969,203.34,203.28,4.49269054]
[1757242124075,5.52254969,203.34,203.26,4.427]
[1757242124277,13.17254969,203.33,203.27,12.47336057]
[1757242124476,7.65,203.32,203.28,4.49336057]
[1757242124673,7.65,203.32,203.26,4.427]
[1757242124973,7.65,203.32,203.28,7.98]
[1757242125179,7.65,203.32,203.27,7.98]
[1757242125373,7.65,203.32,203.29,7.98]
[1757242126974,7.65,203.32,203.26,4.427]
[1757242127174,7.65,203.32,203.28,7.98]
[1757242127374,7.65,203.32,203.3,7.98]
[1757242127680,5.52254969,203.34,203.24,7.98]
[1757242127880,5.52254969,203.34,203.26,7.98]
[1757242128179,5.52254969,203.34,203.23,134.4557]
[1757242128180,13.17254969,203.35,203.28,7.98]
[1757242128380,13.17254969,203.35,203.29,4.49599098]
[1757242128581,5.52254969,203.35,203.3,12.47599098]
[1757242128781,5.52254969,203.35,203.3,7.98]
[1757242128975,7.65,203.34,203.3,7.98]
[1757242129172,7.52,203.34,203.3,7.98]
[1757242129372,5.52254969,203.35,203.3,7.98]
[1757242129577,7.52,203.34,203.3,7.98]
[1757242129779,5.52254969,203.35,203.29,4.4263]
[1757242130077,7.52,203.34,203.3,4.49761432]
[1757242130272,7.52,203.34,203.29,4.4263]
[1757242130273,7.52,203.34,203.31,12.40902393]
[1757242130484,7.52,203.34,203.31,7.91]
[1757242130874,5.52254969,203.35,203.31,7.91]
[1757242131080,7.52,203.34,203.31,7.91]
[1757242131573,7.52,203.33,203.31,7.91]
[1757242131772,7.52,203.32,203.3,7.91]
[1757242131982,7.52,203.32,203.31,4.50262216]
[1757242134289,13.04254969,203.32,203.31,4.50262216]
[1757242137388,7.52,203.32,203.31,4.50262216]
[1757242141689,7.52,203.32,203.31,12.41262216]
[1757242142190,7.52,203.32,203.31,9.33714696]
[1757242143390,8.2906433,203.33,203.31,9.33714696]
[1757242143594,7.52,203.32,203.28,4.4265]
[1757242143893,5.53229494,203.31,203.28,4.4265]
[1757242144192,5.53229494,203.31,203.29,7.91]
[1757242144892,5.53229494,203.31,203.28,4.4265]
[1757242145189,5.53229494,203.31,203.29,7.91]
[1757242145393,5.53229494,203.31,203.28,4.4265]
[1757242145788,5.53229494,203.31,203.29,7.91]
[1757242146190,5.53229494,203.31,203.28,4.4265]
[1757242146693,5.53229494,203.31,203.29,7.91]
[1757242146889,5.53229494,203.31,203.28,4.4265]
[1757242147193,5.53229494,203.31,203.29,7.91]
[1757242147394,5.53229494,203.31,203.28,4.4265]
[1757242147694,5.53229494,203.31,203.29,7.91]
[1757242147995,5.53229494,203.31,203.28,4.4265]
[1757242148294,5.53229494,203.31,203.29,7.91]
[1757242148992,5.53229494,203.31,203.28,4.4265]
[1757242149194,5.53229494,203.31,203.29,7.91]
[1757242150092,13.05229494,203.31,203.29,7.91]
[1757242150991,13.05229494,203.31,203.26,123.667]
[1757242151197,13.05229494,203.31,203.27,12.3368]
[1757242151391,5.53229494,203.31,203.28,7.91]
[1757242151600,5.53229494,203.31,203.27,4.4268]
[1757242151897,5.53229494,203.31,203.28,7.91]
[1757242152098,5.53229494,203.31,203.27,4.4268]
[1757242152596,5.53229494,203.31,203.28,7.91]
[1757242153197,5.53229494,203.31,203.27,4.4268]
[1757242153398,5.53229494,203.31,203.28,7.91]
[1757242153692,5.53229494,203.31,203.27,4.4268]
[1757242154193,5.53229494,203.31,203.28,4.45140648]
[1757242154399,5.53229494,203.31,203.3,7.91]
[1757242154603,5.53229494,203.31,203.3,12.36140648]
[1757242157505,8.2906433,203.33,203.3,12.36140648]
[1757242157698,15.8106433,203.33,203.31,4.45140648]
[1757242157900,15.8106433,203.33,203.32,4.45140648]
[1757242163509,15.8106433,203.33,203.32,4.45186273]
[1757242164507,8.2906433,203.33,203.32,12.17186273]
[1757242165607,8.2906433,203.34,203.33,7.72]
[1757242165802,8.2906433,203.35,203.33,12.17186273]
[1757242166109,16.1606433,203.36,203.34,4.45186273]
[1757242166405,16.1606433,203.36,203.35,4.45186273]
[1757242166609,16.1606433,203.36,203.33,7.72]
[1757242168711,8.2906433,203.36,203.33,7.72]
[1757242168905,7.87,203.35,203.33,7.72]
[1757242171213,5.52767853,203.34,203.33,7.72]
[1757242174616,13.39767853,203.34,203.33,7.72]
[1757242175017,7.87,203.34,203.26,83.2]
[1757242175317,7.87,203.3,203.27,7.72]
[1757242176013,7.87,203.3,203.25,88.39040027]
[1757242176209,5.52673471,203.3,203.26,7.72]
[1757242176408,7.87,203.29,203.26,7.72]
[1757242176913,7.87,203.29,203.25,207.61040027]
[1757242177109,7.87,203.29,203.26,7.72]
[1757242179216,7.87,203.29,203.25,207.61040027]
[1757242179519,7.87,203.29,203.26,7.72]
[1757242180720,7.87,203.29,203.25,207.61040027]
[1757242181022,7.87,203.29,203.26,7.72]
[1757242181224,7.87,203.29,203.25,207.61040027]
[1757242181627,5.52673471,203.31,203.25,212.03760027]
[1757242181825,13.39673471,203.31,203.26,7.72]
[1757242182324,5.52673471,203.31,203.26,7.72]
[1757242182520,5.52673471,203.31,203.25,212.03760027]
[1757242182726,5.52673471,203.31,203.26,7.72]
[1757242182922,5.52673471,203.31,203.25,212.03760027]
[1757242183428,5.52673471,203.31,203.26,7.72]
[1757242184026,5.52673471,203.31,203.25,212.03760027]
[1757242184422,5.52673471,203.31,203.26,7.72]
[1757242184924,7.87,203.3,203.27,126.94]
[1757242185926,7.87,203.3,203.28,7.72]
[1757242187528,5.52673471,203.31,203.28,7.72]
[1757242188035,5.52673471,203.31,203.27,119.22]
[1757242189434,5.52673471,203.31,203.27,123.6467]
[1757242189629,5.52673471,203.31,203.28,7.52]
[1757242189834,5.52673471,203.31,203.27,123.6467]
[1757242190034,5.52673471,203.31,203.28,7.52]
[1757242190232,13.72673471,203.32,203.27,123.6467]
[1757242192134,13.72673471,203.32,203.28,7.52]
[1757242192733,13.72673471,203.32,203.27,123.6467]
[1757242193331,13.72673471,203.32,203.28,7.52]
[1757242193531,13.72673471,203.32,203.27,123.6467]
[1757242194231,13.72673471,203.32,203.28,7.52]
[1757242194437,13.72673471,203.32,203.27,123.6467]
[1757242194934,13.72673471,203.32,203.28,7.52]
[1757242195530,13.72673471,203.32,203.27,123.6467]
[1757242195732,13.72673471,203.32,203.28,7.52]
[1757242195930,13.72673471,203.32,203.27,123.6467]
[1757242196130,13.72673471,203.32,203.28,4.4266]
[1757242196534,13.72673471,203.32,203.29,7.52]
[1757242197239,13.72673471,203.32,203.28,4.4266]
[1757242197442,13.72673471,203.32,203.29,7.52]
[1757242197640,13.72673471,203.32,203.28,4.4266]
[1757242198031,13.72673471,203.32,203.29,7.52]
[1757242198240,13.72673471,203.32,203.28,4.4266]
[1757242198443,8.2,203.31,203.29,7.52]
[1757242199742,5.52673471,203.32,203.26,4.427]
[1757242199942,8.2,203.31,203.27,119.2]
[1757242200242,8.2,203.31,203.25,95.91040027]
[1757242200434,5.52673471,203.31,203.26,119.2]
[1757242200739,5.52673471,203.31,203.27,7.52]
[1757242201532,8.2,203.3,203.27,7.52]
[1757242202244,5.52673471,203.31,203.27,7.52]
[1757242202441,8.2,203.3,203.27,7.52]
[1757242202944,8.2,203.3,203.26,119.2]
[1757242203245,8.2,203.3,203.27,7.52]
[1757242204742,8.2,203.3,203.26,119.2]
[1757242204947,5.52673471,203.31,203.27,7.52]
[1757242205247,5.52673471,203.33,203.27,7.52]
[1757242206838,5.52673471,203.33,203.29,4.4263]
[1757242207039,5.52673471,203.33,203.31,7.52]
[1757242208148,5.52673471,203.34,203.3,123.6261]
[1757242208750,13.72673471,203.34,203.3,123.6261]
[1757242209154,13.72673471,203.34,203.31,7.52]
[1757242209746,5.52673471,203.34,203.31,7.52]
[1757242209953,8.2,203.33,203.31,7.52]
[1757242213557,8.2,203.33,203.31,122.52]
[1757242213962,8.2,203.33,203.31,7.52]
[1757242214160,8.2,203.33,203.31,126.7]
[1757242214362,8.2,203.33,203.31,7.52]
[1757242214561,8.2,203.33,203.31,126.7]
[1757242215162,8.2,203.33,203.31,7.52]
[1757242215461,8.2,203.33,203.31,122.5]
[1757242217259,8.2,203.33,203.31,119.18]
[1757242217561,5.52673471,203.34,203.31,119.18]
[1757242218362,8.2,203.33,203.31,119.18]
[1757242218565,5.52673471,203.34,203.31,119.18]
[1757242219155,8.2,203.33,203.31,119.18]
[1757242219359,8.19,203.33,203.31,119.18]
[1757242219565,5.52673471,203.34,203.31,119.18]
[1757242219766,8.19,203.33,203.31,119.18]
[1757242219966,5.52673471,203.34,203.31,119.18]
[1757242220371,8.19,203.33,203.31,119.18]
[1757242221771,8.19,203.33,203.31,127.13]
[1757242225876,5.52673471,203.34,203.31,7.95]
[1757242226076,8.19,203.33,203.31,127.11]
[1757242226276,8.19,203.33,203.31,119.16]
[1757242226477,8.19,203.33,203.31,127.11]
[1757242228780,13.71673471,203.34,203.32,7.95]
[1757242230270,5.52673471,203.33,203.32,7.95]
[1757242237894,97.89638864,203.36,203.32,7.95]
[1757242237895,5.52673471,203.34,203.32,7.95]
[1757242238095,5.52673471,203.34,203.33,127.11]
[1757242247500,8.2906433,203.35,203.33,127.11]
[1757242247907,8.2906433,203.35,203.33,119.16]
[1757242248100,8.2906433,203.35,203.34,7.95]
[1757242257515,15.9306433,203.36,203.34,7.95]
[1757242265720,8.2906433,203.36,203.34,7.95]
[1757242266018,15.9306433,203.35,203.33,22.54]
[1757242266613,15.9306433,203.35,203.33,30.3]
[1757242267018,15.9306433,203.35,203.33,7.76]
[1757242271519,8.2906433,203.35,203.3,4.4261]
[1757242271715,5.53209503,203.33,203.3,4.4261]
[1757242272020,5.53209503,203.33,203.31,7.76]
[1757242272418,5.53209503,203.33,203.3,4.4261]
[1757242273119,5.53209503,203.33,203.31,7.76]
[1757242273526,5.53209503,203.33,203.28,4.4265]
[1757242273728,5.53209503,203.32,203.29,7.76]
[1757242275027,5.53209503,203.32,203.29,4.4263]
[1757242275722,5.53209503,203.32,203.3,7.76]
[1757242275918,5.53209503,203.32,203.29,4.4263]
[1757242276624,5.53209503,203.32,203.3,7.76]
[1757242276817,5.53209503,203.32,203.29,4.4263]
[1757242277017,5.53209503,203.32,203.3,7.76]
[1757242277216,5.53209503,203.32,203.29,4.4263]
[1757242277418,5.53209503,203.32,203.3,7.76]
[1757242277617,5.53209503,203.32,203.29,4.4263]
[1757242277827,5.53209503,203.32,203.3,7.76]
[1757242278531,5.53209503,203.32,203.29,4.4263]
[1757242278830,5.53209503,203.32,203.3,7.76]
[1757242279030,5.53209503,203.32,203.29,4.4263]
[1757242279529,5.53209503,203.32,203.3,7.55]
[1757242279929,5.53209503,203.32,203.29,4.4263]
[1757242280629,5.53209503,203.32,203.3,7.55]
[1757242280831,5.53209503,203.32,203.29,4.4263]
[1757242281226,5.53209503,203.32,203.3,7.55]
[1757242282936,5.53209503,203.32,203.29,4.4263]
[1757242283230,5.53209503,203.32,203.3,7.55]
[1757242283835,5.53209503,203.32,203.29,4.4263]
[1757242284734,5.53209503,203.32,203.3,7.55]
[1757242284934,5.53209503,203.32,203.29,4.4263]
[1757242285636,5.53209503,203.32,203.3,7.55]
[1757242286031,5.53209503,203.32,203.29,4.4263]
[1757242286238,5.53209503,203.32,203.3,7.55]
[1757242287538,5.53209503,203.32,203.29,4.4263]
[1757242287734,5.53209503,203.32,203.3,7.55]
[1757242287936,5.53209503,203.32,203.29,4.4263]
[1757242288338,5.53209503,203.33,203.3,7.55]
[1757242288544,13.47209503,203.33,203.29,4.4263]
[1757242288739,7.94,203.32,203.29,7.55]
[1757242292048,7.94,203.32,203.3,119.08]
[1757242292249,7.94,203.32,203.3,126.63]
[1757242292948,7.94,203.32,203.3,7.55]
[1757242293150,7.94,203.32,203.3,126.61]
[1757242293950,7.94,203.32,203.31,7.55]
[1757242294250,7.94,203.32,203.3,126.61]
[1757242295252,5.53209503,203.35,203.31,7.55]
[1757242295749,5.53209503,203.35,203.32,4.69209379]
[1757242295950,5.53209503,203.35,203.33,12.24209379]
[1757242296250,5.53209503,203.35,203.34,123.75209379]
[1757242297350,5.53209503,203.35,203.34,131.30209379]
[1757242298146,5.53209503,203.36,203.34,131.30209379]
[1757242298350,13.47209503,203.36,203.35,4.69209379]
[1757242303153,5.53209503,203.36,203.35,12.24209379]
[1757242303351,5.53209503,203.36,203.35,131.28209379]
[1757242303653,7.94,203.4,203.36,7.55]
[1757242303654,5.53209503,203.37,203.36,7.55]
[1757242303854,5.53209503,203.38,203.37,7.55]
[1757242304055,5.53209503,203.38,203.37,12.24209379]
[1757242306549,13.47209503,203.38,203.37,4.69209379]
[1757242312769,7.94,203.38,203.37,4.69209379]
[1757242321078,7.94,203.38,203.37,4.43824345]
[1757242330078,7.71,203.39,203.37,11.89824345]
[1757242330378,7.71,203.39,203.38,4.43824345]
[1757242330681,7.71,203.39,203.37,7.46]
[1757242330880,7.71,203.39,203.38,4.44675727]
[1757242334483,7.71,203.39,203.38,4.45079948]
[1757242336086,13.24209503,203.39,203.38,4.45079948]
[1757242337487,5.53209503,203.39,203.38,11.91079948]
[1757242339287,5.53209503,203.4,203.38,11.91079948]
[1757242339587,5.53209503,203.4,203.39,4.45079948]
[1757242339980,13.53209503,203.4,203.39,4.45079948]
[1757242342286,5.53209503,203.4,203.39,4.45079948]
[1757242342492,5.53209503,203.4,203.39,12.16079948]
[1757242343283,13.53209503,203.4,203.39,12.16079948]
[1757242343689,5.53209503,203.4,203.39,12.16079948]
[1757242343884,13.53209503,203.4,203.39,12.16079948]
[1757242345591,13.53209503,203.4,203.39,4.45079948]
[1757242346196,8.0,203.4,203.39,4.45079948]
[1757242348398,8.0,203.4,203.39,1.37639645]
[1757242348698,16.2906433,203.4,203.39,1.37639645]
[1757242349098,8.2906433,203.4,203.39,1.37639645]
[1757242349299,16.2906433,203.4,203.39,1.37639645]
[1757242352804,8.2906433,203.4,203.39,9.08639645]
[1757242353504,8.2906433,203.4,203.39,1.37639645]
[1757242353706,16.2906433,203.4,203.39,1.37639645]
[1757242357507,8.0,203.4,203.39,1.37639645]
[1757242382241,8.0,203.4,203.2,68.8834]
[1757242382242,8.5,203.4,203.3,7.89]
[1757242382440,8.5,203.4,203.27,83.28006625]
[1757242382441,5.53303606,203.34,203.28,7.89]
[1757242383235,13.64303606,203.35,203.28,7.89]
[1757242384139,5.53303606,203.37,203.31,7.89]
[1757242384442,5.53303606,203.36,203.31,7.89]
[1757242384635,5.53303606,203.35,203.31,7.89]
[1757242384836,8.11,203.34,203.31,7.89]
[1757242385140,8.11,203.33,203.31,7.89]
[1757242386340,8.11,203.33,203.3,4.4261]
[1757242386639,8.11,203.33,203.31,7.89]
[1757242389141,5.53303606,203.35,203.3,4.4261]
[1757242389339,8.11,203.34,203.31,7.89]
[1757242392045,8.11,203.34,203.3,4.4261]
[1757242392945,8.11,203.34,203.31,7.89]
[1757242393446,8.11,203.34,203.3,4.4261]
[1757242394141,8.11,203.34,203.31,12.3662793]
[1757242394350,8.11,203.34,203.32,12.3662793]
[1757242394546,8.11,203.34,203.33,4.4762793]
[1757242396151,5.53303606,203.36,203.34,7.89]
[1757242396344,13.64303606,203.37,203.35,12.3650266]
[1757242396540,8.11,203.37,203.36,4.4750266]
[1757242404448,8.11,203.37,203.32,12.0457]
[1757242404449,13.64303606,203.37,203.32,7.62]
[1757242404651,13.64303606,203.37,203.33,4.47316774]
[1757242404944,13.64303606,203.37,203.34,4.47316774]
[1757242405149,13.64303606,203.37,203.35,4.47316774]
[1757242405350,5.53303606,203.37,203.3,118.98]
[1757242405550,7.86,203.36,203.31,4.47316121]
[1757242405751,7.86,203.36,203.32,4.47316121]
[1757242405952,7.86,203.36,203.33,4.47316121]
[1757242406153,13.39303606,203.36,203.34,4.47316121]
[1757242406451,7.86,203.34,203.28,126.6]
[1757242406646,7.86,203.34,203.29,4.47443959]
[1757242406852,5.53303606,203.34,203.3,4.47443959]
[1757242407051,5.53303606,203.34,203.29,7.62]
[1757242407052,13.39303606,203.34,203.31,4.47443959]
[1757242407251,13.39303606,203.34,203.32,4.47443959]
[1757242407451,13.39303606,203.34,203.29,7.62]
[1757242407653,13.39303606,203.34,203.3,4.47445395]
[1757242407852,13.39303606,203.34,203.31,4.47445395]
[1757242408155,13.39303606,203.34,203.32,4.47445395]
[1757242408456,13.39303606,203.34,203.29,7.62]
[1757242408654,13.39303606,203.34,203.3,4.47388584]
[1757242408854,13.39303606,203.34,203.31,4.47388584]
[1757242409156,13.39303606,203.34,203.29,7.62]
[1757242409358,13.39303606,203.34,203.3,4.47338448]
[1757242409556,13.39303606,203.34,203.29,7.62]
[1757242409557,7.86,203.33,203.31,4.47338448]
[1757242409857,5.53303606,203.34,203.29,7.62]
[1757242410047,5.53303606,203.34,203.3,4.47340553]
[1757242410246,5.53303606,203.34,203.31,4.47340553]
[1757242410453,5.53303606,203.34,203.29,7.62]
[1757242410652,5.53303606,203.34,203.3,4.47300872]
[1757242410854,7.86,203.33,203.31,4.47300872]
[1757242411157,7.86,203.33,203.28,131.0265]
[1757242411359,7.86,203.33,203.3,7.62]
[1757242411556,7.86,203.33,203.31,12.09263377]
[1757242411751,7.86,203.33,203.32,4.47263377]
[1757242418760,5.53303606,203.34,203.32,12.09263377]
[1757242419061,13.39303606,203.34,203.32,7.62]
[1757242422356,7.86,203.33,203.29,7.62]
[1757242422556,7.86,203.33,203.3,12.10078047]
[1757242422763,7.86,203.33,203.31,12.10078047]
[1757242423062,7.86,203.33,203.32,4.48078047]
[1757242427165,13.39303606,203.33,203.32,4.48078047]
[1757242428167,7.86,203.33,203.32,4.48078047]
[1757242432274,7.86,203.33,203.31,7.62]
[1757242432571,7.86,203.33,203.32,4.48294446]
[1757242433476,12.96303606,203.34,203.32,12.21294446]
[1757242433677,12.96303606,203.34,203.33,4.48294446]
[1757242437576,7.43,203.34,203.33,4.48294446]
[1757242437779,5.53303606,203.35,203.33,12.21294446]
[1757242437974,12.96303606,203.35,203.34,4.48294446]
[1757242438175,5.53303606,203.37,203.34,12.21294446]
[1757242438370,12.96303606,203.37,203.35,12.21294446]
[1757242438580,7.43,203.37,203.36,4.48294446]
[1757242438976,12.96303606,203.38,203.36,12.21294446]
[1757242439178,12.96303606,203.38,203.37,4.48294446]
[1757242440680,12.96303606,203.38,203.37,4.48008556]
[1757242441078,12.96303606,203.38,203.33,7.73]
[1757242441374,12.96303606,203.38,203.35,7.73]
[1757242441578,12.96303606,203.38,203.36,12.2097594]
[1757242441776,12.96303606,203.38,203.36,7.73]
[1757242442381,12.96303606,203.38,203.37,4.47966828]
[1757242453088,7.43,203.38,203.33,7.73]
[1757242453390,5.51869176,203.36,203.34,4.4787923]
[1757242453590,12.94869176,203.36,203.3,7.73]
[1757242453788,7.43,203.35,203.32,7.73]
[1757242453988,7.43,203.35,203.33,4.47986383]
[1757242454191,7.43,203.35,203.34,4.47986383]
[1757242458096,12.94869176,203.35,203.34,4.47986383]
[1757242459096,12.94869176,203.35,203.29,7.73]
[1757242459097,7.43,203.35,203.29,7.73]
[1757242459299,8.12,203.33,203.3,12.03034515]
[1757242459596,8.12,203.33,203.31,4.48034515]
[1757242459796,8.12,203.33,203.32,4.48034515]
[1757242464194,5.52027677,203.34,203.32,12.03034515]
[1757242464400,13.64027677,203.34,203.33,4.48034515]
[1757242477713,8.12,203.34,203.33,4.48034515]
[1757242487726,13.64222674,203.34,203.33,4.48034515]
[1757242492132,8.12,203.34,203.33,4.48034515]
[1757242492631,8.12,203.34,203.33,4.48056975]
[1757242498339,16.0695541,203.35,203.33,11.87056975]
[1757242498538,16.0695541,203.35,203.34,4.48056975]
[1757242503241,7.77,203.35,203.34,4.48056975]
[1757242508445,7.77,203.35,203.34,4.49665704]
[1757242509144,118.98,203.46,203.28,78.63871468]
[1757242509145,10.98017628,203.38,203.28,78.63871468]
[1757242509346,5.53336579,203.3,203.29,4.4959707]
[1757242510047,13.30336579,203.3,203.29,4.4959707]
[1757242511747,7.77,203.3,203.29,4.4959707]
[1757242512042,7.77,203.3,203.25,7.39]
[1757242512247,7.77,203.29,203.27,7.39]
[1757242512446,7.77,203.29,203.28,4.49446346]
[1757242513148,5.53106072,203.3,203.29,7.39]
[1757242513348,5.53106072,203.3,203.29,11.88446346]
[1757242519651,5.53106072,203.3,203.29,11.88058443]
[1757242524153,5.53106072,203.31,203.29,11.88058443]
[1757242524357,13.29106072,203.31,203.3,4.49058443]
[1757242526562,5.53106072,203.31,203.3,12.42058443]
[1757242528261,13.29106072,203.31,203.3,12.42058443]
[1757242529464,5.53106072,203.31,203.3,12.42058443]
[1757242530465,5.53106072,203.31,203.3,12.4215974]
[1757242536272,13.29106072,203.31,203.3,4.4915974]
[1757242539378,5.53106072,203.31,203.3,12.4215974]
[1757242539578,13.29106072,203.31,203.3,12.4215974]
[1757242541480,13.29106072,203.31,203.3,12.42169063]
[1757242546389,7.76,203.31,203.3,12.42169063]
[1757242546787,13.28725426,203.31,203.3,12.42169063]
[1757242547185,5.52725426,203.31,203.3,12.42169063]
[1757242550287,8.30004869,203.33,203.3,12.42169063]
[1757242550288,5.52954892,203.32,203.31,7.75]
[1757242550496,8.30004869,203.34,203.32,7.75]
[1757242550695,8.30004869,203.34,203.33,4.49169063]
[1757242551193,16.48004869,203.34,203.33,4.49169063]
[1757242552097,8.18,203.34,203.33,4.49169063]
[1757242552491,16.48004869,203.34,203.33,4.49169063]
[1757242553793,8.30004869,203.34,203.33,4.49169063]
[1757242553999,8.30004869,203.35,203.33,4.49169063]
[1757242554202,16.48004869,203.35,203.34,4.49169063]
[1757242556299,8.18,203.35,203.34,4.49169063]
[1757242563103,85.96114327,203.36,203.34,4.49169063]
[1757242563302,5.52446637,203.35,203.28,7.75]
[1757242563498,5.52446637,203.36,203.3,7.75]
[1757242563707,5.52446637,203.36,203.27,68.8618]
[1757242563708,5.52446637,203.36,203.31,4.49143599]
[1757242563909,5.52446637,203.36,203.33,7.75]
[1757242564205,5.52446637,203.36,203.35,7.75]
[1757242564402,5.52446637,203.36,203.35,12.24143599]
[1757242566208,5.52446637,203.36,203.35,12.23615562]
[1757242568111,5.52446637,203.37,203.35,4.48615562]
[1757242568311,5.52446637,203.37,203.36,12.23615562]
[1757242568813,5.52446637,203.38,203.36,4.48615562]
[1757242569007,5.52446637,203.38,203.37,12.23615562]
[1757242569403,5.52446637,203.39,203.37,4.48615562]
[1757242569609,5.52446637,203.39,203.38,7.75]
[1757242571211,13.70446637,203.39,203.34,4.4253]
[1757242571512,13.70446637,203.39,203.35,4.48108582]
[1757242571714,13.70446637,203.39,203.37,7.75]
[1757242573216,8.18,203.39,203.37,7.75]
[1757242579522,8.18,203.39,203.35,7.41]
[1757242579716,8.18,203.39,203.36,11.88857839]
[1757242580015,8.18,203.39,203.36,7.41]
[1757242586324,5.52446637,203.4,203.36,7.41]
[1757242586525,7.68,203.39,203.36,7.41]
[1757242588226,7.68,203.39,203.37,4.47880807]
[1757242588523,7.68,203.39,203.36,7.41]
[1757242588725,7.68,203.39,203.37,4.47916635]
[1757242588924,7.68,203.39,203.36,7.41]
[1757242589118,7.68,203.39,203.37,4.47916635]
[1757242589324,7.68,203.39,203.36,7.41]
[1757242589526,7.68,203.39,203.37,4.47960206]
[1757242589726,7.68,203.39,203.36,7.41]
[1757242590026,7.68,203.39,203.37,4.47960206]
[1757242590227,7.68,203.39,203.36,7.41]
[1757242590426,7.68,203.39,203.37,4.48012085]
[1757242590627,7.68,203.39,203.36,7.41]